bitfinex/quotes_SOLUSD_20241122
["timestamp","ask_amount","ask_price","bid_price","bid_amount"]
[1732273974359,9.00513414,257.12,257.04,20.0]
[1732273975741,9.00513414,257.12,257.04,29.00513414]
[1732273977262,9.00513414,257.12,257.05,23.776884]
[1732273977445,21.90245714,257.2,257.07,23.776884]
[1732273977649,9.00513414,257.16,257.07,23.776884]
[1732273979144,9.00513414,257.16,257.08,9.00513414]
[1732273979371,9.00513414,257.2,257.11,23.776884]
[1732273979666,9.00513414,257.18,257.11,23.776884]
[1732273980262,9.00513414,257.2,257.12,9.00513414]
[1732273981062,9.00513414,257.22,257.13,23.776884]
[1732273982272,3.8867,257.29,257.17,23.776884]
[1732273982473,9.00513414,257.25,257.17,23.776884]
[1732273982678,9.00513414,257.23,257.17,23.776884]
[1732273983467,9.00513414,257.23,257.06,0.58328392]
[1732273983468,9.00513414,257.23,257.15,23.776884]
[1732273984953,3.8863,257.31,257.17,23.776884]
[1732273985156,9.00513414,257.24,257.17,23.776884]
[1732273986353,3.8863,257.31,257.17,23.776884]
[1732273986555,9.00513414,257.25,257.17,23.776884]
[1732273986958,9.00513414,257.23,257.17,23.776884]
[1732273989677,9.00513414,257.23,257.15,23.776884]
[1732273990867,16.3864,257.32,257.15,23.776884]
[1732273991057,9.00513414,257.24,257.17,23.776884]
[1732273991281,9.00513414,257.24,257.15,32.78201814]
[1732273991575,9.00513414,257.24,257.17,23.776884]
[1732273991961,9.00513414,257.19,257.14,20.0]
[1732273992568,9.00513414,257.21,257.14,20.0]
[1732273995088,9.00513414,257.19,257.14,20.0]
[1732273996294,9.00513414,257.21,257.15,23.776884]
[1732273996495,24.92344879,257.35,257.14,20.0]
[1732273996496,9.00513414,257.2,257.14,23.776884]
[1732273997468,9.00513414,257.22,257.16,23.776884]
[1732273998378,9.00513414,257.23,257.16,23.776884]
[1732273998568,9.00513414,257.23,257.18,23.776884]
[1732274003077,9.00513414,257.19,257.18,23.776884]
[1732274004487,9.00513414,257.19,257.14,20.0]
[1732274004694,9.00513414,257.19,257.17,23.776884]
[1732274004986,9.00513414,257.19,257.14,20.0]
[1732274005171,9.00513414,257.15,257.13,16.3216]
[1732274005887,9.00513414,257.15,257.07,25.17813414]
[1732274006668,9.00513414,257.17,257.09,20.0]
[1732274006876,9.00513414,257.17,257.1,23.776884]
[1732274007392,9.00513414,257.17,257.11,20.0]
[1732274007573,9.00513414,257.19,257.14,23.776884]
[1732274008193,9.00513414,257.17,257.14,23.776884]
[1732274009077,9.00513414,257.19,257.14,23.776884]
[1732274010390,3.8865,257.3,257.15,20.0]
[1732274010689,9.00513414,257.22,257.16,23.776884]
[1732274011382,9.00513414,257.22,257.17,20.0]
[1732274011575,9.00513414,257.22,257.18,23.776884]
[1732274013870,3.8865,257.3,257.18,23.776884]
[1732274014180,9.00513414,257.23,257.18,23.776884]
[1732274016884,9.00513414,257.25,257.2,23.776884]
[1732274018685,9.00513414,257.23,257.19,20.0]
[1732274019000,9.00513414,257.21,257.11,9.00513414]
[1732274019293,9.00513414,257.21,257.12,20.0]
[1732274020181,9.00513414,257.21,257.14,20.0]
[1732274020381,9.00513414,257.21,257.15,23.776884]
[1732274020597,9.00513414,257.21,257.16,20.0]
[1732274021088,3.8868,257.28,257.16,20.0]
[1732274021293,9.00513414,257.23,257.17,23.776884]
[1732274021601,9.00513414,257.23,257.18,20.0]
[1732274021777,9.00513414,257.25,257.19,23.776884]
[1732274022395,2.89451447,257.24,257.19,23.776884]
[1732274022598,9.00513414,257.25,257.19,23.776884]
[1732274022798,2.89452087,257.24,257.19,23.776884]
[1732274022993,9.00513414,257.25,257.19,23.776884]
[1732274023187,9.00513414,257.23,257.19,23.776884]
[1732274025297,9.00513414,257.23,257.15,9.00513414]
[1732274025602,9.00513414,257.23,257.16,43.776884]
[1732274028496,9.00513414,257.24,257.19,20.0]
[1732274028802,9.00513414,257.22,257.19,20.0]
[1732274029001,9.00513414,257.22,257.17,15.5166]
[1732274029318,9.00513414,257.22,257.17,20.0]
[1732274030399,9.00513414,257.2,257.17,20.0]
[1732274030982,9.00513414,257.2,257.14,20.0]
[1732274031206,9.00513414,257.2,257.16,20.0]
[1732274031585,3.8863,257.31,257.16,20.0]
[1732274031791,9.00513414,257.23,257.17,23.776884]
[1732274032099,9.00513414,257.23,257.18,20.0]
[1732274033399,3.8865,257.3,257.18,20.0]
[1732274033583,9.00513414,257.24,257.18,20.0]
[1732274037291,3.8863,257.32,257.19,23.776884]
[1732274037494,6.06499633,257.33,257.2,20.0]
[1732274037809,9.00513414,257.26,257.21,23.776884]
[1732274039011,9.00513414,257.26,257.18,20.0]
[1732274039188,9.00513414,257.26,257.19,23.776884]
[1732274039601,9.00513414,257.26,257.21,23.776884]
[1732274040005,9.00513414,257.26,257.22,20.0]
[1732274040992,9.00513414,257.24,257.22,20.0]
[1732274042298,9.00513414,257.24,257.16,20.0]
[1732274042503,9.00513414,257.24,257.17,23.776884]
[1732274042708,9.00513414,257.24,257.19,23.776884]
[1732274043103,9.00513414,257.24,257.2,20.0]
[1732274044514,9.00513414,257.24,257.16,20.0]
[1732274044715,9.00513414,257.24,257.18,20.0]
[1732274045596,6.06499633,257.33,257.2,20.0]
[1732274045800,6.06499633,257.34,257.24,20.0]
[1732274046004,6.06499633,257.34,257.25,23.776884]
[1732274046316,9.00513414,257.3,257.26,20.0]
[1732274046610,9.00513414,257.3,257.27,23.776884]
[1732274046805,6.06499633,257.35,257.28,20.0]
[1732274047004,15.07013047,257.35,257.3,20.0]
[1732274047205,9.00513414,257.35,257.3,20.0]
[1732274047592,9.00513414,257.35,257.31,23.776884]
[1732274047993,9.00513414,257.35,257.32,20.0]
[1732274048711,6.06499633,257.37,257.32,20.0]
[1732274048916,6.06499633,257.37,257.34,20.0]
[1732274049101,6.06499633,257.37,257.36,20.0]
[1732274049297,15.07013047,257.37,257.36,20.0]
[1732274049692,6.06499633,257.37,257.36,43.776884]
[1732274049897,6.06499633,257.38,257.36,43.776884]
[1732274050217,6.06499633,257.44,257.36,43.776884]
[1732274050421,6.06499633,257.45,257.38,20.0]
[1732274050613,12.12999266,257.47,257.38,20.0]
[1732274050614,9.00513414,257.42,257.38,20.0]
[1732274051197,6.06499633,257.49,257.38,20.0]
[1732274051521,9.00513414,257.44,257.4,20.0]
[1732274052598,9.00513414,257.44,257.41,23.776884]
[1732274054401,9.00513414,257.46,257.41,23.776884]
[1732274055719,9.00513414,257.46,257.37,20.0]
[1732274056325,9.00513414,257.46,257.39,20.0]
[1732274057034,9.00513414,257.46,257.41,20.0]
[1732274057434,9.00513414,257.44,257.41,20.0]
[1732274057622,9.00513414,257.44,257.35,43.776884]
[1732274057823,9.00513414,257.42,257.37,20.0]
[1732274060430,9.00513414,257.42,257.34,23.776884]
[1732274060624,9.00513414,257.4,257.28,6.335]
[1732274060831,9.00513414,257.36,257.28,15.34013414]
[1732274061237,9.00513414,257.36,257.28,6.335]
[1732274061943,9.00513414,257.34,257.25,9.00513414]
[1732274063644,9.00513414,257.34,257.26,23.776884]
[1732274063941,9.00513414,257.32,257.25,20.0]
[1732274064140,9.00513414,257.3,257.18,15.1404]
[1732274064641,9.00513414,257.3,257.2,9.00513414]
[1732274065349,9.00513414,257.28,257.18,15.1404]
[1732274065637,9.00513414,257.28,257.19,9.00513414]
[1732274066627,9.00513414,257.28,257.21,23.776884]
[1732274068446,9.00513414,257.28,257.21,32.78201814]
[1732274068639,9.00513414,257.28,257.22,20.0]
[1732274069962,9.00513414,257.3,257.22,20.0]
[1732274070653,9.00513414,257.31,257.23,32.78201814]
[1732274072428,9.00513414,257.29,257.23,23.776884]
[1732274078138,9.00513414,257.29,257.21,23.776884]
[1732274080163,12.89143414,257.31,257.22,9.00513414]
[1732274080365,3.8858,257.35,257.24,9.00513414]
[1732274080566,9.00513414,257.33,257.25,23.776884]
[1732274081060,12.89093414,257.35,257.26,9.00513414]
[1732274081860,9.00513414,257.34,257.26,9.00513414]
[1732274082150,9.00513414,257.34,257.25,23.776884]
[1732274083048,3.886,257.34,257.25,23.776884]
[1732274083360,9.00513414,257.33,257.25,23.776884]
[1732274084051,3.8857,257.36,257.27,23.776884]
[1732274084243,9.00513414,257.35,257.27,23.776884]
[1732274084958,9.00513414,257.37,257.29,23.776884]
[1732274085159,23.8848,257.41,257.29,23.776884]
[1732274085459,9.00513414,257.38,257.31,23.776884]
[1732274086463,3.8852,257.39,257.31,23.776884]
[1732274086770,9.00513414,257.38,257.31,23.776884]
[1732274087549,12.89043414,257.38,257.31,23.776884]
[1732274088066,12.89043414,257.38,257.3,23.776884]
[1732274088238,9.00513414,257.36,257.29,23.776884]
[1732274088442,9.00513414,257.34,257.29,23.776884]
[1732274088969,9.00513414,257.34,257.28,15.8056]
[1732274089946,12.89073414,257.36,257.28,15.8056]
[1732274090467,9.00513414,257.36,257.29,23.776884]
[1732274091554,3.8854,257.37,257.29,23.776884]
[1732274091555,3.8853,257.39,257.29,32.78201814]
[1732274092038,9.00513414,257.37,257.29,32.78201814]
[1732274092247,9.00513414,257.37,257.29,23.776884]
[1732274093553,9.00513414,257.37,257.29,32.78201814]
[1732274095470,9.00513414,257.39,257.29,32.78201814]
[1732274096053,9.00513414,257.37,257.29,32.78201814]
[1732274096252,9.00513414,257.37,257.29,23.776884]
[1732274096767,9.00513414,257.35,257.28,15.8056]
[1732274099760,12.89093414,257.35,257.28,15.8056]
[1732274099959,9.00513414,257.33,257.28,15.8056]
[1732274100477,9.00513414,257.31,257.24,43.776884]
[1732274100785,3.8858,257.35,257.21,9.00513414]
[1732274101076,9.00513414,257.3,257.22,20.0]
[1732274101385,9.00513414,257.3,257.2,20.0]
[1732274101568,9.00513414,257.3,257.22,9.00513414]
[1732274102179,9.00513414,257.3,257.23,23.776884]
[1732274102357,12.89133414,257.32,257.23,23.776884]
[1732274102560,9.00513414,257.32,257.23,23.776884]
[1732274102768,9.00513414,257.32,257.21,23.776884]
[1732274102955,9.00513414,257.32,257.23,9.00513414]
[1732274104161,9.00513414,257.3,257.21,32.78201814]
[1732274107078,20.0,257.35,257.23,9.00513414]
[1732274107271,9.00513414,257.33,257.25,9.00513414]
[1732274107479,9.00513414,257.33,257.26,23.776884]
[1732274110377,9.00513414,257.33,257.2,0.58301722]
[1732274110378,9.00513414,257.33,257.24,23.776884]
[1732274112067,9.00513414,257.33,257.25,9.00513414]
[1732274112468,9.00513414,257.33,257.26,23.776884]
[1732274119071,9.00513414,257.33,257.23,9.00513414]
[1732274119072,9.00513414,257.33,257.24,23.776884]
[1732274121186,9.00513414,257.31,257.21,32.78201814]
[1732274121500,3.8857,257.35,257.23,9.00513414]
[1732274121794,9.00513414,257.33,257.25,9.00513414]
[1732274122393,9.00513414,257.35,257.27,9.00513414]
[1732274122601,9.00513414,257.35,257.28,23.776884]
[1732274124684,3.8852,257.39,257.28,23.776884]
[1732274124884,15.1642,257.42,257.32,23.776884]
[1732274125088,9.00513414,257.4,257.32,23.776884]
[1732274125288,15.1642,257.42,257.32,23.776884]
[1732274125603,15.1642,257.42,257.31,9.00513414]
[1732274125604,9.00513414,257.4,257.34,23.776884]
[1732274128088,3.8847,257.42,257.32,23.776884]
[1732274128298,9.00513414,257.4,257.32,23.776884]
[1732274130798,9.00513414,257.36,257.3,23.776884]
[1732274131193,9.00513414,257.34,257.26,9.00513414]
[1732274131691,9.00513414,257.32,257.24,9.00513414]
[1732274133092,3.8854,257.38,257.26,9.00513414]
[1732274133291,9.00513414,257.34,257.26,9.00513414]
[1732274134000,9.00513414,257.37,257.29,23.776884]
[1732274134377,16.2474,257.45,257.29,23.776884]
[1732274134378,3.8848,257.42,257.3,9.00513414]
[1732274134581,9.00513414,257.39,257.31,23.776884]
[1732274135274,9.00513414,257.42,257.34,9.00513414]
[1732274135593,20.4225,257.45,257.34,9.00513414]
[1732274135780,9.00513414,257.42,257.34,9.00513414]
[1732274136495,9.00513414,257.38,257.3,23.776884]
[1732274136702,9.00513414,257.36,257.3,23.776884]
[1732274137482,9.00513414,257.34,257.29,20.0]
[1732274137683,9.00513414,257.34,257.28,23.776884]
[1732274138503,9.00513414,257.32,257.28,23.776884]
[1732274139212,9.00513414,257.32,257.24,9.00513414]
[1732274140125,9.00513414,257.32,257.25,20.0]
[1732274140611,9.00513414,257.32,257.26,23.776884]
[1732274140814,9.00513414,257.3,257.23,16.5431]
[1732274142003,9.00513414,257.3,257.24,23.776884]
[1732274143922,9.00513414,257.26,257.17,16.1547]
[1732274144098,9.00513414,257.26,257.18,9.00513414]
[1732274145097,9.00513414,257.26,257.2,23.776884]
[1732274146422,9.00513414,257.22,257.16,20.0]
[1732274147100,9.00513414,257.22,257.14,20.0]
[1732274148013,9.00513414,257.22,257.15,9.00513414]
[1732274148212,9.00513414,257.22,257.16,20.0]
[1732274148718,9.00513414,257.22,257.17,23.776884]
[1732274149024,9.00513414,257.22,257.16,43.776884]
[1732274149225,9.00513414,257.22,257.17,20.0]
[1732274149613,9.00513414,257.24,257.17,29.00513414]
[1732274150218,9.00513414,257.26,257.18,23.776884]
[1732274150407,9.00513414,257.26,257.19,9.00513414]
[1732274150609,9.00513414,257.26,257.2,23.776884]
[1732274150919,6.0733,257.31,257.2,23.776884]
[1732274150920,9.00513414,257.3,257.22,23.776884]
[1732274151121,3.8857,257.36,257.22,23.776884]
[1732274151323,9.00513414,257.3,257.22,23.776884]
[1732274153314,9.00513414,257.28,257.2,23.776884]
[1732274154129,9.00513414,257.26,257.18,23.776884]
[1732274158034,15.0737,257.35,257.22,9.00513414]
[1732274158333,9.00513414,257.31,257.23,23.776884]
[1732274159332,9.00513414,257.29,257.23,23.776884]
[1732274159518,9.00513414,257.29,257.21,23.776884]
[1732274159717,9.00513414,257.29,257.22,20.0]
[1732274160034,9.00513414,257.29,257.23,23.776884]
[1732274160230,9.00513414,257.27,257.23,23.776884]
[1732274160433,9.00513414,257.25,257.12,0.58302415]
[1732274160643,3.8861,257.33,257.19,9.00513414]
[1732274160817,9.00513414,257.28,257.19,9.00513414]
[1732274161527,9.00513414,257.28,257.2,23.776884]
[1732274161915,9.00513414,257.24,257.12,0.58302415]
[1732274162122,9.00513414,257.24,257.16,20.0]
[1732274162321,9.00513414,257.24,257.17,9.00513414]
[1732274162541,3.8861,257.33,257.18,20.0]
[1732274162542,9.00513414,257.26,257.18,20.0]
[1732274163519,9.00513414,257.26,257.19,23.776884]
[1732274165744,9.00513414,257.22,257.12,0.58306487]
[1732274165923,9.00513414,257.18,257.11,15.3832]
[1732274166835,9.00513414,257.18,257.07,0.58317715]
[1732274167044,9.00513414,257.18,257.09,9.00513414]
[1732274167347,9.00513414,257.16,257.1,20.0]
[1732274168324,9.00513414,257.16,257.12,3.86198923]
[1732274169427,9.00513414,257.16,257.11,23.776884]
[1732274169637,9.00513414,257.16,257.12,20.0]
[1732274170851,9.00513414,257.16,257.11,23.776884]
[1732274171155,9.00513414,257.14,257.05,9.00513414]
[1732274171449,9.00513414,257.14,257.06,23.776884]
[1732274172230,9.00513414,257.14,257.08,23.776884]
[1732274172449,3.8882,257.19,257.08,23.776884]
[1732274172639,9.00513414,257.1,256.96,16.4519]
[1732274172950,9.00513414,257.06,256.97,0.58340321]
[1732274173157,9.00513414,257.06,256.99,9.00513414]
[1732274174132,9.00513414,257.06,257.0,20.0]
[1732274174637,9.00513414,257.03,256.96,16.4519]
[1732274174947,9.00513414,257.03,256.94,6.4366]
[1732274174948,9.00513414,257.02,256.94,9.00513414]
[1732274175152,9.00513414,256.99,256.92,9.00513414]
[1732274175451,9.00513414,257.01,256.94,9.00513414]
[1732274175828,9.00513414,256.97,256.88,6.4412]
[1732274176036,9.00513414,256.95,256.88,9.00513414]
[1732274177050,9.00513414,256.96,256.88,9.00513414]
[1732274177735,9.00513414,256.95,256.91,23.776884]
[1732274179635,9.00513414,256.96,256.91,23.776884]
[1732274179960,15.9072,257.03,256.91,32.78201814]
[1732274180126,9.00513414,257.04,256.97,23.776884]
[1732274180332,9.00513414,256.98,256.94,20.0]
[1732274180533,9.00513414,257.0,256.94,20.0]
[1732274181737,6.3338,257.06,256.95,23.776884]
[1732274181935,9.00513414,257.0,256.95,23.776884]
[1732274182152,9.00513414,257.02,256.95,23.776884]
[1732274183350,9.00513414,257.06,256.97,32.78201814]
[1732274183556,9.00513414,257.08,257.0,23.776884]
[1732274183727,9.00513414,257.06,257.0,23.776884]
[1732274183929,9.00513414,257.06,257.01,23.776884]
[1732274184432,6.5614,257.12,257.01,23.776884]
[1732274184628,6.1417,257.18,257.03,37.9140117]
[1732274184842,14.1371277,257.14,257.06,14.1371277]
[1732274185142,14.1371277,257.16,257.07,23.776884]
[1732274185555,14.1371277,257.16,257.08,14.1371277]
[1732274185736,14.1371277,257.16,257.09,43.776884]
[1732274186154,14.1371277,257.18,257.11,23.776884]
[1732274186638,15.6765,257.26,257.14,14.1371277]
[1732274186639,14.1371277,257.22,257.14,14.1371277]
[1732274186842,14.1371277,257.24,257.15,43.776884]
[1732274187044,10.1333,257.3,257.09,16.2703]
[1732274187045,14.1371277,257.26,257.19,23.776884]
[1732274187659,14.1371277,257.2,257.16,23.776884]
[1732274187865,14.1371277,257.18,257.16,23.776884]
[1732274188147,14.1371277,257.27,257.16,23.776884]
[1732274188353,14.1371277,257.18,257.16,23.776884]
[1732274191570,14.1371277,257.18,257.1,14.1371277]
[1732274191857,14.1371277,257.15,257.06,14.1371277]
[1732274192249,14.1371277,257.15,257.08,14.1371277]
[1732274192932,14.1371277,257.17,257.08,14.1371277]
[1732274193138,14.1371277,257.17,257.09,43.776884]
[1732274193349,3.8873,257.25,257.09,43.776884]
[1732274193657,14.1371277,257.18,257.11,23.776884]
[1732274194559,14.1371277,257.16,257.1,23.776884]
[1732274194860,14.1371277,257.14,257.08,23.776884]
[1732274195434,14.1371277,257.1,257.03,15.4801]
[1732274196758,14.1371277,257.1,257.04,23.776884]
[1732274198158,14.1371277,257.08,257.04,23.776884]
[1732274198367,14.1371277,257.06,256.98,14.1371277]
[1732274199765,14.1371277,257.06,256.99,20.0]
[1732274199939,14.1371277,257.08,256.99,20.0]
[1732274200667,14.1371277,257.08,257.01,20.0]
[1732274201164,14.1371277,257.08,257.02,23.776884]
[1732274201665,14.1371277,257.1,257.02,37.9140117]
[1732274201871,14.1371277,257.14,257.07,23.776884]
[1732274202056,14.1371277,257.12,257.03,20.0]
[1732274202371,14.1371277,257.12,257.05,20.0]
[1732274202544,14.1371277,257.12,257.06,23.776884]
[1732274202864,14.1371277,257.12,257.04,23.776884]
[1732274203066,14.1371277,257.12,257.05,20.0]
[1732274203270,14.1371277,257.12,257.06,23.776884]
[1732274204351,14.1371277,257.1,257.0,14.1371277]
[1732274204669,14.1371277,257.08,257.03,23.776884]
[1732274205369,14.1371277,257.04,256.98,23.776884]
[1732274205668,14.1371277,257.04,256.94,20.8024277]
[1732274206070,14.1371277,257.04,256.96,14.1371277]
[1732274206368,14.1371277,257.06,256.98,14.1371277]
[1732274206669,14.1371277,257.06,256.99,20.0]
[1732274207354,14.1371277,257.06,257.0,23.776884]
[1732274207556,14.1371277,257.06,256.99,20.0]
[1732274207751,14.1371277,257.02,256.93,20.0]
[1732274207967,14.1371277,257.02,256.92,29.8074277]
[1732274208270,14.1371277,257.0,256.92,29.8074277]
[1732274208961,14.1371277,256.98,256.92,15.6703]
[1732274209366,14.1371277,256.98,256.9,14.1371277]
[1732274209567,4.36798712,257.1,256.88,14.1371277]
[1732274209568,14.1371277,256.96,256.88,14.1371277]
[1732274209955,14.1371277,256.94,256.88,14.1371277]
[1732274210351,14.1371277,256.94,256.86,15.155]
[1732274210352,14.1371277,256.94,256.86,14.1371277]
[1732274210561,14.1371277,256.92,256.84,14.1371277]
[1732274211074,14.1371277,256.93,256.85,14.1371277]
[1732274211469,14.1371277,256.95,256.88,23.776884]
[1732274212469,14.1371277,256.95,256.89,0.3892]
[1732274213362,14.1371277,256.93,256.89,0.3892]
[1732274213758,14.1371277,256.91,256.89,0.3892]
[1732274214656,14.1371277,256.9,256.84,0.3893]
[1732274214877,14.1371277,256.86,256.84,0.3893]
[1732274215978,14.1371277,256.86,256.79,24.166284]
[1732274216678,14.1371277,256.86,256.81,23.776884]
[1732274216987,14.1371277,256.86,256.83,0.3893]
[1732274219879,14.1371277,256.9,256.83,24.166184]
[1732274220074,14.1371277,256.9,256.85,23.776884]
[1732274220269,14.1371277,256.92,256.85,23.776884]
[1732274220671,14.1371277,256.92,256.86,0.58379401]
[1732274220868,6.0902,256.98,256.86,0.58379401]
[1732274220869,14.1371277,256.88,256.86,0.58379401]
[1732274221068,14.1371277,256.87,256.83,0.3893]
[1732274221283,14.1371277,256.85,256.83,0.3893]
[1732274222086,14.1371277,256.85,256.79,23.776884]
[1732274222384,14.1371277,256.85,256.79,24.166284]
[1732274222561,14.1371277,256.85,256.8,20.0]
[1732274222769,14.1371277,256.85,256.81,23.776884]
[1732274223485,14.1371277,256.83,256.82,0.3893]
[1732274224392,14.1371277,256.85,256.82,0.3893]
[1732274224993,14.1371277,256.83,256.73,0.3895]
[1732274225289,14.1371277,256.79,256.73,0.3895]
[1732274225613,14.1371277,256.74,256.73,0.3895]
[1732274226766,14.1371277,256.74,256.67,0.3896]
[1732274227088,14.1371277,256.72,256.67,24.166484]
[1732274227982,14.1371277,256.7,256.69,0.3895]
[1732274228187,14.1371277,256.7,256.69,1.3634]
[1732274228787,14.1371277,256.72,256.69,1.3634]
[1732274228967,14.1371277,256.72,256.69,0.9739]
[1732274230485,14.1371277,256.75,256.7,23.776884]
[1732274230870,14.1371277,256.72,256.69,0.9739]
[1732274231066,14.1371277,256.7,256.69,0.9739]
[1732274232373,14.1371277,256.7,256.63,20.0]
[1732274232374,14.1371277,256.7,256.65,20.0]
[1732274232684,14.1371277,256.68,256.66,23.776884]
[1732274234682,14.1371277,256.7,256.66,23.776884]
[1732274234885,14.1371277,256.7,256.67,1.3636]
[1732274235301,14.1371277,256.72,256.68,23.776884]
[1732274235503,14.1371277,256.74,256.68,23.776884]
[1732274235687,14.1371277,256.74,256.69,0.58420857]
[1732274236087,14.1371277,256.76,256.7,23.776884]
[1732274236287,14.1371277,256.76,256.72,23.776884]
[1732274236983,14.1371277,256.74,256.73,0.3895]
[1732274237672,14.1371277,256.76,256.73,0.3895]
[1732274237872,14.1371277,256.76,256.73,1.3632]
[1732274238075,14.1371277,256.8,256.74,23.776884]
[1732274238300,14.1371277,256.8,256.74,24.36094536]
[1732274239075,14.1371277,256.8,256.75,0.3894]
[1732274240787,14.1371277,256.78,256.75,1.3631]
[1732274241092,14.1371277,256.8,256.75,1.3631]
[1732274241796,14.1371277,256.8,256.76,23.776884]
[1732274242000,14.1371277,256.82,256.76,23.776884]
[1732274242301,14.1371277,256.82,256.78,23.776884]
[1732274243100,14.1371277,256.82,256.79,0.3894]
[1732274244114,14.1371277,256.8,256.71,0.3895]
[1732274244311,14.1371277,256.75,256.71,24.166384]
[1732274245601,14.1371277,256.75,256.73,23.776884]
[1732274246195,14.1371277,256.75,256.74,0.3894]
[1732274246713,14.1371277,256.77,256.74,0.3894]
[1732274246906,14.1371277,256.79,256.74,0.3894]
[1732274247107,14.1371277,256.79,256.74,1.3631]
[1732274247316,14.1371277,256.79,256.75,23.776884]
[1732274248315,14.1371277,256.79,256.76,0.3894]
[1732274248615,14.1371277,256.81,256.77,23.776884]
[1732274249611,14.1371277,256.79,256.77,23.776884]
[1732274251215,14.1371277,256.79,256.78,0.3894]
[1732274253002,14.1371277,256.81,256.78,0.3894]
[1732274254613,18.0300277,256.88,256.78,0.3894]
[1732274254614,14.1371277,256.8,256.78,0.3894]
[1732274255519,14.1371277,256.79,256.78,0.3894]
[1732274255813,14.1371277,256.8,256.78,0.3894]
[1732274256912,14.1371277,256.82,256.78,0.3894]
[1732274257621,14.1371277,256.82,256.78,0.9735]
[1732274258118,14.1371277,256.8,256.78,0.9735]
[1732274258415,14.1371277,256.8,256.76,0.3894]
[1732274258616,14.1371277,256.77,256.76,0.3894]
[1732274259417,14.1371277,256.77,256.66,14.1371277]
[1732274259714,14.1371277,256.77,256.69,20.0]
[1732274259917,14.1371277,256.77,256.71,20.0]
[1732274260617,14.1371277,256.77,256.72,23.776884]
[1732274261299,14.1371277,256.77,256.73,0.3895]
[1732274261502,14.1371277,256.79,256.73,1.3632]
[1732274261706,14.1371277,256.81,256.74,23.776884]
[1732274262124,14.1371277,256.81,256.76,23.776884]
[1732274262626,14.1371277,256.83,256.76,23.776884]
[1732274262802,14.1371277,256.85,256.78,23.776884]
[1732274263009,14.1371277,256.85,256.8,23.776884]
[1732274263320,14.1371277,256.85,256.82,23.776884]
[1732274264421,14.1371277,256.85,256.83,0.3893]
[1732274265098,14.1371277,256.87,256.83,0.3893]
[1732274266301,6.1178,256.93,256.79,0.3894]
[1732274266302,14.1371277,256.85,256.79,0.3894]
[1732274266506,14.1371277,256.82,256.79,20.3894]
[1732274266803,14.1371277,256.8,256.7,14.1371277]
[1732274267007,14.1371277,256.78,256.71,0.3895]
[1732274268511,3.8932,256.86,256.72,14.1371277]
[1732274268709,14.1371277,256.81,256.74,14.1371277]
[1732274268921,14.1371277,256.81,256.74,14.72114745]
[1732274269112,14.1371277,256.83,256.77,20.0]
[1732274269914,14.1371277,256.83,256.76,20.3894]
[1732274270117,14.1371277,256.83,256.77,23.776884]
[1732274271217,14.1371277,256.81,256.78,0.3894]
[1732274271535,14.1371277,256.79,256.74,0.3894]
[1732274272010,14.1371277,256.81,256.74,0.3894]
[1732274272826,14.1371277,256.81,256.75,20.0]
[1732274273203,14.1371277,256.81,256.76,0.3894]
[1732274274035,14.1371277,256.81,256.73,20.0]
[1732274276210,14.1371277,256.77,256.7,14.1371277]
[1732274277330,14.1371277,256.77,256.69,29.7911277]
[1732274278124,14.1371277,256.77,256.7,23.776884]
[1732274278327,14.1371277,256.78,256.7,14.1371277]
[1732274278824,14.1371277,256.77,256.7,20.0]
[1732274280612,9.07360016,256.74,256.7,20.0]
[1732274280817,9.07360016,256.72,256.67,20.0]
[1732274281526,6.1728,256.83,256.67,20.0]
[1732274281527,9.07360016,256.74,256.67,20.0]
[1732274283539,9.07360016,256.76,256.67,20.0]
[1732274283746,9.07360016,256.76,256.68,9.07360016]
[1732274284121,6.1728,256.83,256.71,20.0]
[1732274284327,9.07360016,256.8,256.72,9.07360016]
[1732274284644,9.07360016,256.8,256.73,20.0]
[1732274285739,9.07360016,256.8,256.71,20.0]
[1732274287131,9.07360016,256.8,256.72,9.07360016]
[1732274287333,9.07360016,256.8,256.73,20.0]
[1732274288535,9.07360016,256.8,256.73,9.07360016]
[1732274288821,9.07360016,256.8,256.74,20.0]
[1732274289440,22.21231682,256.98,256.74,20.0]
[1732274289441,15.8632,256.92,256.75,9.07360016]